bitfinex/quotes_ETHUSD_20220308
["timestamp","ask_amount","ask_price","bid_price","bid_amount"]
[1646744825351,0.99997826,2585.8,2585.3,3.0]
[1646744825548,0.00136245,2586.3,2585.1,0.03816195]
[1646744825755,0.00136245,2586.0,2585.4,0.96728]
[1646744825949,0.9676,2585.8,2585.4,0.96728]
[1646744826148,1.14370698,2585.6,2585.4,0.96728]
[1646744826393,13.18370698,2585.6,2585.4,0.96728]
[1646744826592,13.18370698,2585.6,2585.1,0.03816195]
[1646744826794,3.25714864,2585.5,2585.1,0.03816195]
[1646744827003,1.96789826,2585.3,2585.1,0.03816195]
[1646744827397,0.91818751,2585.2,2585.1,0.03816195]
[1646744827797,1.21818751,2585.2,2585.1,0.03816195]
[1646744827999,2.21816577,2585.2,2585.1,0.03816195]
[1646744829398,3.0,2585.1,2584.6,0.96784]
[1646744829601,2.21816577,2585.2,2584.4,1.68760374]
[1646744829602,11.74,2584.9,2584.4,1.68760374]
[1646744829801,0.94994973,2584.6,2584.4,1.68760374]
[1646744830442,0.96804,2584.7,2584.4,1.68760374]
[1646744831445,1.19041348,2584.6,2584.4,1.68760374]
[1646744831650,1.93632,2584.5,2584.4,1.68760374]
[1646744832445,1.19041348,2584.6,2584.4,1.68760374]
[1646744832646,0.99997826,2584.9,2584.4,1.68760374]
[1646744832844,0.3,2584.9,2584.4,1.68760374]
[1646744833347,0.99997826,2585.2,2584.4,3.62309374]
[1646744833547,1.14944042,2585.3,2584.5,0.86861583]
[1646744833745,0.96776,2585.3,2584.5,4.36861583]
[1646744833996,1.07985409,2585.5,2584.5,1.84147892]
[1646744834196,2.04758809,2585.5,2584.5,2.14147892]
[1646744834397,1.04760983,2585.5,2584.5,2.14147892]
[1646744834600,11.74,2585.2,2584.5,1.27286309]
[1646744834798,11.74,2585.0,2584.5,1.26778]
[1646744835197,11.74,2585.0,2584.9,0.00328484]
[1646744836002,11.74,2585.0,2584.4,2.65548374]
[1646744836303,11.74,2585.0,2584.8,0.00328491]
[1646744836500,11.74,2584.9,2584.8,0.00328491]
[1646744837299,11.74,2584.9,2584.4,1.68760374]
[1646744837300,13.97603,2584.9,2584.4,1.68760374]
[1646744837499,11.74,2584.6,2584.4,1.68760374]
[1646744837751,11.74,2584.5,2584.4,1.68760374]
[1646744838153,12.04,2584.5,2584.4,1.68760374]
[1646744838351,13.15347371,2584.5,2584.4,1.68760374]
[1646744838853,14.12154371,2584.5,2584.4,1.68760374]
[1646744839860,14.12154371,2584.5,2583.7,7.29]
[1646744839861,11.74,2584.3,2583.7,7.29]
[1646744840057,11.74,2584.2,2583.5,1.93635]
[1646744840457,12.04,2584.2,2583.5,1.93635]
[1646744840860,11.74,2584.1,2583.5,1.93635]
[1646744841058,11.74,2583.9,2583.5,1.93635]
[1646744841261,10.05229793,2583.9,2583.5,1.93635]
[1646744841508,0.00136245,2584.3,2583.8,3.0]
[1646744841698,1.00134071,2584.6,2583.8,3.0]
[1646744841898,0.3,2584.6,2583.8,3.0]
[1646744842098,1.52616245,2584.8,2583.8,3.0]
[1646744842400,1.22616245,2584.8,2584.5,3.0]
[1646744842600,3.87894071,2585.3,2584.5,3.0]
[1646744842902,0.07987583,2585.5,2584.5,3.0]
[1646744843304,1.04757583,2585.5,2584.4,0.3]
[1646744843501,11.74,2585.4,2584.6,0.99616217]
[1646744843701,13.67578,2585.2,2584.9,0.00490646]
[1646744844503,11.74,2585.0,2583.9,4.0]
[1646744844803,11.74,2584.8,2583.9,4.3]
[1646744845001,11.74,2584.8,2584.4,0.96789]
[1646744845743,11.74,2584.9,2584.4,0.96789]
[1646744845941,11.74,2584.9,2584.5,0.00474976]
[1646744846941,11.74,2584.9,2584.4,0.96789]
[1646744847148,12.04,2584.9,2584.6,0.00474964]
[1646744848148,11.74,2584.8,2584.3,1.9358]
[1646744848349,12.04,2584.8,2584.6,0.00474959]
[1646744848648,0.3,2584.8,2584.6,0.00474959]
[1646744848889,12.04,2584.9,2584.6,0.00474959]
[1646744849093,0.3,2584.9,2584.6,0.00474959]
[1646744849295,12.04,2585.0,2584.0,4.12148582]
[1646744849491,12.04,2585.0,2584.6,0.0047602]
[1646744849695,0.03231137,2584.7,2584.6,3.56246859]
[1646744849897,0.03231137,2584.7,2584.6,7.41426859]
[1646744850095,0.03231137,2584.7,2584.6,8.41426859]
[1646744850296,0.03231137,2584.7,2584.6,6.49582361]
[1646744850501,0.0013595,2585.6,2584.6,9.99106341]
[1646744850802,0.11861663,2586.9,2585.6,1.4858]
[1646744850803,0.0013595,2585.7,2585.6,1.4858]
[1646744850995,0.00858154,2586.1,2585.6,1.9518]
[1646744851197,0.00722204,2586.1,2585.6,1.9518]
[1646744851608,0.0013595,2586.3,2585.6,1.9518]
[1646744851800,11.74,2586.4,2586.1,1.1]
[1646744851995,11.74722464,2586.4,2586.1,1.1]
[1646744852196,11.74,2586.3,2586.1,1.1]
[1646744852860,12.8841075,2586.2,2586.1,1.1]
[1646744853260,11.74,2586.0,2585.5,1.9347]
[1646744853465,11.81987583,2586.0,2585.2,0.3]
[1646744853767,12.11987583,2586.0,2584.9,0.97272777]
[1646744853962,12.11987583,2586.0,2584.9,1.27272777]
[1646744854163,12.11987583,2586.0,2585.0,3.0]
[1646744854367,12.11987583,2586.0,2585.6,0.12846468]
[1646744854563,12.11987583,2586.0,2585.6,1.09586468]
[1646744855466,11.74,2585.9,2585.6,1.09586468]
[1646744855966,11.74,2585.9,2585.6,4.09586468]
[1646744856264,11.74,2585.9,2585.6,1.09586468]
[1646744856492,11.74,2585.8,2585.6,1.09586468]
[1646744857493,12.83570698,2585.7,2585.6,0.09656468]
[1646744857894,3.0,2585.6,2585.1,1.93508]
[1646744858098,11.74,2585.5,2584.9,0.00475172]
[1646744858301,13.04,2585.5,2584.9,0.00475172]
[1646744858498,0.96786,2585.2,2584.9,0.00475172]
[1646744858698,11.74,2585.1,2584.9,0.00475172]
[1646744858899,12.04,2585.1,2584.9,0.00475172]
[1646744859098,12.04,2585.1,2584.8,0.96781]
[1646744859298,12.04,2585.1,2584.9,0.00475127]
[1646744859698,0.3,2585.1,2584.9,0.00475127]
[1646744860151,12.04,2585.3,2584.8,0.96781]
[1646744860541,11.74,2585.1,2584.9,0.00477388]
[1646744861351,11.74,2585.1,2584.8,0.96781]
[1646744861741,11.74,2585.1,2584.7,2.23538]
[1646744861742,12.04,2585.1,2584.9,0.00477388]
[1646744861943,11.74,2585.0,2584.9,0.00477388]
[1646744862541,11.74,2585.0,2584.5,1.93572]
[1646744862542,0.87943417,2584.7,2584.5,1.93572]
[1646744862742,11.74,2584.6,2584.5,1.93572]
[1646744862942,11.74,2584.6,2584.5,2.56972]
[1646744864900,11.74,2584.6,2584.5,0.634]
[1646744865500,15.24,2584.5,2584.4,0.00477291]
[1646744865901,16.23997826,2584.5,2584.4,0.00477291]
[1646744866301,11.74,2584.2,2583.6,0.51395168]
[1646744866501,11.74,2584.2,2583.7,2.09627702]
[1646744866700,12.6742438,2583.8,2583.7,0.51395168]
[1646744867099,10.98644212,2583.8,2583.7,0.51395168]
[1646744867743,10.98644212,2583.8,2583.7,2.09629902]
[1646744867951,10.98644212,2583.8,2583.7,0.51395168]
[1646744868946,10.98644212,2583.8,2583.1,0.51395168]
[1646744869146,10.98644212,2583.8,2583.3,0.51395168]
[1646744869147,1.23426032,2583.4,2583.3,0.51395168]
[1646744869347,10.98644212,2583.8,2583.3,2.09644856]
[1646744869547,10.98644212,2583.8,2583.5,0.51395168]
[1646744869952,11.74,2584.3,2583.6,0.51395168]
[1646744870152,11.74,2584.3,2583.8,0.51395168]
[1646744870350,11.74,2584.3,2583.8,3.51395168]
[1646744871050,11.74,2584.2,2583.8,3.51395168]
[1646744871249,11.74,2584.2,2583.9,0.00508558]
[1646744871495,11.75866913,2584.5,2583.9,0.00508558]
[1646744872099,11.75866913,2584.5,2583.9,0.51903726]
[1646744872302,11.75866913,2584.5,2584.0,0.51395168]
[1646744872503,11.75866913,2584.5,2584.1,0.00508539]
[1646744872904,0.01866913,2584.5,2584.2,0.51395168]
[1646744873104,0.01866913,2584.5,2584.4,3.51395168]
[1646744873504,0.01866913,2584.5,2584.4,3.89975168]
[1646744873702,0.01866913,2584.5,2584.4,6.48168502]
[1646744874302,11.7413595,2585.3,2584.4,6.48168502]
[1646744874501,11.74,2585.3,2584.7,0.51395168]
[1646744874708,11.74,2585.3,2585.0,0.51395168]
[1646744875152,15.24,2585.3,2585.0,0.51395168]
[1646744875341,16.23997826,2585.3,2585.0,0.51395168]
[1646744875641,11.74,2585.1,2585.0,0.51395168]
[1646744878999,2.13234557,2585.5,2585.0,0.62414575]
[1646744879201,0.99997826,2585.6,2585.3,0.51395168]
[1646744879403,0.96762,2585.8,2585.3,0.51395168]
[1646744879800,11.74,2585.7,2585.4,0.51395168]
[1646744880002,11.74,2585.3,2585.1,0.86096376]
[1646744880204,15.24,2585.2,2585.1,0.86096376]
[1646744880403,11.74,2585.2,2585.1,0.86096376]
[1646744880802,12.73997826,2585.2,2585.0,0.11019407]
[1646744881205,12.73997826,2585.1,2585.0,0.11019407]
[1646744881805,16.23997826,2585.1,2585.0,0.11019407]
[1646744882843,17.23997826,2585.1,2585.0,0.11019407]
[1646744883545,16.23997826,2585.1,2585.0,0.11019407]
[1646744883744,12.73997826,2585.1,2585.0,0.11019407]
[1646744883948,12.73997826,2585.1,2585.0,0.03636967]
[1646744884753,16.23997826,2585.1,2585.0,0.03636967]
[1646744885252,12.73997826,2585.1,2585.0,0.03636967]
[1646744885450,11.74,2585.1,2585.0,0.03636967]
[1646744886251,12.05898706,2585.2,2585.0,0.03636967]
[1646744887295,0.31898706,2585.2,2585.0,0.03636967]
[1646744887494,0.31898706,2585.2,2585.0,0.89733343]
[1646744887699,0.01898706,2585.2,2585.0,0.89733343]
[1646744887899,0.31898706,2585.2,2585.0,0.89733343]
[1646744889300,0.01898706,2585.2,2585.0,0.96922249]
[1646744889499,0.31898706,2585.2,2585.0,0.96922249]
[1646744890151,11.74,2585.1,2585.0,0.96922249]
[1646744890541,16.23997826,2585.1,2585.0,0.96922249]
[1646744890743,12.73997826,2585.1,2585.0,0.96922249]
[1646744891746,11.74,2584.9,2584.3,1.93588]
[1646744891946,12.70805,2584.7,2584.3,1.93588]
[1646744892147,13.00805,2584.7,2584.3,1.93588]
[1646744892344,15.00802826,2584.7,2584.3,1.93588]
[1646744892545,14.00802826,2584.7,2584.3,1.93588]
[1646744892747,11.74,2584.5,2584.3,1.93588]
[1646744892947,11.74,2584.5,2584.4,0.00476716]
[1646744893149,1.29997826,2584.7,2584.4,0.00476716]
[1646744893351,0.20257705,2585.1,2584.5,3.0]
[1646744893352,1.00133776,2585.1,2584.5,3.0]
[1646744893549,0.99997826,2585.1,2584.4,0.00476716]
[1646744893748,0.01898706,2585.2,2584.8,3.0]
[1646744894597,0.01898706,2585.2,2585.0,0.11926855]
[1646744894598,11.74,2585.1,2585.0,0.11926855]
[1646744899548,11.74,2585.1,2585.0,0.07987674]
[1646744899746,11.76761076,2585.1,2585.0,0.03970586]
[1646744900750,13.06758902,2585.1,2585.0,0.03970586]
[1646744901797,0.02761076,2585.1,2585.0,0.03970586]
[1646744902195,0.02761076,2585.1,2585.0,0.50786012]
[1646744902795,0.02761076,2585.1,2585.0,0.03970586]
[1646744902996,0.02761076,2585.1,2585.0,0.50786012]
[1646744904903,12.76758902,2585.1,2585.0,0.50786012]
[1646744905760,13.9958554,2585.1,2585.0,0.50786012]
[1646744910296,5.0,2584.9,2584.3,1.93596]
[1646744910503,5.0,2584.9,2583.8,3.3173]
[1646744910504,11.74,2584.8,2583.8,3.3173]
[1646744910698,11.74,2584.7,2583.9,1.58222816]
[1646744911097,11.74,2584.7,2584.0,0.96817]
[1646744911300,1.3,2584.8,2584.0,0.96817]
[1646744911301,11.74,2584.3,2584.0,0.96817]
[1646744911503,12.73997826,2584.4,2584.2,3.0]
[1646744911700,0.99997826,2584.5,2584.2,3.0]
[1646744912098,0.3,2584.8,2584.2,3.0]
[1646744912299,1.29997826,2584.9,2584.2,3.00481223]
[1646744912501,11.74,2584.8,2584.2,3.00481223]
[1646744912774,0.3,2585.0,2584.2,2.24056223]
[1646744912775,11.74,2584.7,2584.2,2.24056223]
[1646744912965,11.74,2584.7,2584.3,3.0]
[1646744913164,11.74,2584.7,2584.2,2.23575]
[1646744913364,12.73997826,2584.7,2584.4,0.004812]
[1646744913764,11.74,2584.5,2584.4,0.004812]
[1646744913969,12.73997826,2584.5,2584.4,0.004812]
[1646744914167,13.03997826,2584.5,2584.4,0.004812]
[1646744914371,13.03997826,2584.5,2584.2,1.93575]
[1646744914372,14.08128347,2584.5,2584.2,1.93575]
[1646744914569,14.08128347,2584.5,2584.3,0.00481206]
[1646744914970,12.73997826,2584.4,2584.3,0.00481206]
[1646744915572,12.73997826,2584.4,2584.2,1.93575]
[1646744915771,11.74,2584.3,2584.2,1.9405595]
[1646744916172,12.04,2584.3,2584.2,1.9405595]
[1646744916798,12.04,2584.3,2584.2,1.93575]
[1646744917000,13.03997826,2584.3,2584.1,0.05651805]
[1646744917197,12.70827,2584.2,2584.1,0.05651805]
[1646744917396,13.70824826,2584.2,2584.1,0.05651805]
[1646744917797,14.70824826,2584.2,2584.1,0.05651805]
[1646744918005,14.70824826,2584.2,2584.1,0.05170843]
[1646744918405,17.24,2584.1,2583.9,0.00480973]
[1646744918607,17.54,2584.1,2583.9,0.00480973]
[1646744918800,20.70115633,2584.1,2583.9,0.00480973]
[1646744919205,12.73997826,2584.0,2583.9,0.00480973]
[1646744919608,11.74,2583.3,2582.8,7.37277]
[1646744919803,11.74,2583.3,2583.0,0.91855]
[1646744919804,11.74,2583.2,2583.0,0.91855]
[1646744920003,11.74,2583.2,2583.1,1.58265094]
[1646744920249,11.74,2583.2,2583.0,0.91855]
[1646744920451,11.74,2583.2,2583.1,0.46559055]
[1646744921054,12.70855,2583.2,2583.1,0.46559055]
[1646744923057,13.90848992,2583.2,2583.1,0.46559055]
[1646744924001,12.70855,2583.2,2583.1,0.46559055]
[1646744924603,14.00855,2583.2,2583.0,0.00507298]
[1646744924804,15.07983162,2583.2,2583.1,0.07060728]
[1646744925201,15.30974247,2583.2,2583.1,0.07060728]
[1646744925402,12.7087868,2582.8,2582.5,1.93737]
[1646744925602,11.74,2582.7,2582.5,1.93737]
[1646744926301,12.93713068,2582.7,2582.5,1.93737]
[1646744926501,13.93710894,2582.7,2582.5,1.93737]
[1646744926700,13.93710894,2582.7,2582.5,1.94065384]
[1646744926701,0.99997826,2582.6,2582.5,1.94065384]
[1646744926903,12.73997826,2582.6,2582.5,0.25641147]
[1646744927102,13.03997826,2582.6,2582.5,0.25641147]
[1646744927503,14.03997826,2582.6,2582.5,0.25312763]
[1646744928351,14.03997826,2582.6,2581.4,4.59571519]
[1646744928352,12.1258,2582.3,2581.4,0.3871]
[1646744928553,0.3,2582.0,2581.4,0.3871]
[1646744928750,11.74,2581.9,2581.5,3.0]
[1646744928956,12.73997826,2582.0,2581.6,4.58334886]
[1646744929152,11.74,2582.0,2581.8,3.0]
[1646744929450,11.74,2582.0,2581.6,4.93812]
[1646744930052,11.74,2582.0,2581.6,2.23812]
[1646744930454,11.74,2582.0,2581.7,3.0]
[1646744930852,11.74,2582.0,2581.6,2.23812]
[1646744931152,1.3,2582.4,2581.9,3.0]
[1646744931153,1.96884826,2582.4,2581.9,3.0]
[1646744931413,5.12883237,2582.7,2582.3,3.0]
[1646744931414,3.97559512,2582.7,2582.3,3.0]
[1646744931598,0.07129512,2582.7,2582.3,3.0]
[1646744932201,0.96875,2582.6,2582.2,0.3]
[1646744932404,12.70875,2582.6,2582.2,0.3]
[1646744932601,12.70875,2582.6,2582.0,2.6943085]
[1646744932801,12.70875,2582.6,2582.4,0.00506745]
[1646744933001,12.70875,2582.6,2582.5,0.634]
[1646744935004,13.70872826,2582.6,2582.5,0.634]
[1646744935447,12.70875,2582.6,2582.5,0.634]
[1646744938454,15.00872826,2582.6,2582.5,0.634]
[1646744938655,11.74,2582.4,2582.1,0.634]
[1646744938905,11.74,2582.2,2582.1,0.634]
[1646744939099,14.2163746,2582.2,2582.1,0.634]
[1646744940206,15.21635286,2582.2,2582.1,0.634]
[1646744940399,14.00896826,2582.2,2582.1,0.634]
[1646744941603,12.73997826,2582.2,2582.1,3.634]
[1646744942303,0.99997826,2582.2,2582.1,3.634]
[1646744942947,0.04090891,2582.6,2582.3,0.634]
[1646744943150,0.04090891,2582.6,2582.5,3.634]
[1646744944153,0.15104436,2583.2,2582.5,1.0198]
[1646744944353,13.24,2583.6,2583.2,0.634]
[1646744944551,13.24,2583.6,2583.1,3.0]
[1646744944552,12.24,2583.6,2583.3,3.634]
[1646744945152,12.24,2583.6,2583.5,3.634]
[1646744945153,0.5,2583.6,2583.5,3.634]
[1646744945957,0.5,2583.6,2583.5,0.634]
[1646744945958,11.74,2583.6,2583.5,0.634]
[1646744946412,12.74,2583.6,2583.5,0.634]
[1646744946601,13.6312512,2583.6,2583.5,0.634]
[1646744947002,14.9312512,2583.6,2583.5,0.634]
[1646744947807,14.9312512,2583.6,2583.0,1.12538432]
[1646744947808,0.96868,2583.2,2583.0,1.12538432]
[1646744948009,0.96868,2583.2,2582.1,0.04281094]
[1646744948010,11.74,2582.9,2582.1,0.04281094]
[1646744948403,11.74,2582.4,2582.1,0.04281094]
[1646744948804,1.3,2582.4,2582.2,3.0]
[1646744949006,1.0,2582.4,2582.2,3.0]
[1646744949204,1.3,2582.9,2582.2,3.0]
[1646744949404,1.3,2582.9,2582.6,3.0]
[1646744949603,0.3,2582.9,2582.6,3.0]
[1646744950004,11.74,2582.8,2582.6,3.0]
[1646744950257,0.3,2582.8,2582.6,3.0]
[1646744950451,0.3,2582.8,2582.6,3.96864]
[1646744950658,0.3,2582.8,2582.6,3.0]
[1646744950853,11.74,2582.8,2582.6,3.00476645]
[1646744951054,11.74,2582.8,2582.6,0.00476645]
[1646744951656,11.74,2582.8,2582.4,3.0]
[1646744951854,12.7087774,2582.7,2582.6,0.00454698]
[1646744952656,0.9687774,2582.7,2582.6,0.00454698]
[1646744952858,12.7087774,2582.7,2582.6,2.95]
[1646744953056,0.9687774,2582.7,2582.6,2.95]
[1646744953457,0.9687774,2582.7,2582.5,0.30454704]
[1646744953658,0.9687774,2582.7,2582.6,2.95]
[1646744953913,0.96874,2582.7,2582.6,2.95]
[1646744954306,2.9374934,2583.0,2582.6,2.95]
[1646744954307,0.96858,2583.0,2582.6,2.95]
[1646744954506,0.06820655,2582.8,2582.7,0.05434164]
[1646744954709,3.12826,2583.3,2582.7,16.54514164]
[1646744954710,0.23179345,2583.3,2582.7,16.54514164]
[1646744954909,1.20010345,2583.8,2583.2,2.95]
[1646744955110,0.23179345,2583.8,2583.7,2.95]
[1646744955306,0.3877,2584.1,2583.7,2.95]
[1646744955607,1.15793773,2584.2,2583.6,0.3]
[1646744955810,1.15793773,2584.2,2583.5,1.93635]
[1646744955811,11.74,2584.1,2583.7,0.96818]
[1646744956010,11.74,2584.3,2584.0,2.95]
[1646744956208,11.74,2584.3,2583.7,0.96818]
[1646744956209,11.74,2584.3,2584.2,2.95]
[1646744956411,0.01815439,2584.5,2584.2,2.95]
[1646744956611,0.01815439,2584.5,2584.0,1.93581]
[1646744956813,0.20985535,2584.9,2584.4,2.95]
[1646744956814,12.9496488,2584.9,2584.4,2.95]
[1646744957012,0.0180002,2584.7,2584.4,3.91782]
[1646744957211,0.0180002,2584.7,2584.6,2.95]
[1646744957951,0.0015466,2584.8,2584.6,2.95]
[1646744958153,0.0015466,2584.8,2584.6,3.91762]
[1646744958757,12.77997497,2585.3,2584.6,3.91762]
[1646744958957,13.07997497,2585.3,2584.6,3.91762]
[1646744959158,0.00154659,2584.8,2584.6,3.91762]
[1646744959761,0.00154659,2584.8,2584.6,2.95]
[1646744959961,11.74,2585.0,2584.6,2.95]
[1646744960161,11.74,2584.7,2584.6,2.95]
[1646744960462,12.73979345,2584.7,2584.6,2.95]
[1646744960661,13.7069727,2584.7,2584.6,2.95]
[1646744961062,12.73979345,2584.7,2584.6,2.95]
[1646744961504,12.73979345,2584.7,2584.2,0.96804]
[1646744961705,13.42559345,2584.7,2583.9,3.01142524]
[1646744961903,11.74,2584.5,2583.9,3.01142524]
[1646744962102,11.74,2584.0,2583.9,3.01142524]
[1646744962506,12.70832,2584.0,2583.9,3.01142524]
[1646744963105,12.70832,2584.0,2583.9,0.06142524]
[1646744964108,12.70832,2584.0,2583.7,2.98489564]
[1646744965349,12.70832,2584.0,2583.8,2.95]
[1646744967849,12.70832,2584.0,2583.8,3.91822]
[1646744968350,12.70832,2584.0,2583.8,2.95]
[1646744968550,13.70811345,2584.0,2583.8,2.95]
[1646744969008,13.73052528,2584.0,2583.9,0.03513317]
[1646744969812,0.02241183,2584.0,2583.9,0.03513317]
[1646744973553,12.76220528,2584.0,2583.9,0.03513317]
[1646744974252,13.900191,2584.0,2583.7,1.34455725]
[1646744974453,14.868481,2584.0,2583.7,1.34455725]
[1646744975754,14.868481,2584.0,2583.7,4.29455725]
[1646744975954,14.868481,2584.0,2583.7,3.32628725]
[1646744976411,14.868481,2584.0,2583.7,3.02628725]
[1646744976798,14.868481,2584.0,2583.9,2.95]
[1646744976799,13.73049528,2584.0,2583.9,2.95]
[1646744976999,12.73070183,2584.0,2583.9,2.95]
[1646744977606,12.73070183,2584.0,2583.7,0.07628725]
[1646744977607,13.73049528,2584.0,2583.7,0.07628725]
[1646744978001,11.74,2583.8,2583.7,0.07628725]
[1646744978406,11.74,2583.6,2583.3,0.97316729]
[1646744978606,11.74,2583.4,2583.3,0.00476729]
[1646744979407,11.74,2583.4,2582.8,0.20461965]
[1646744979606,11.74,2583.2,2582.8,0.20461965]
[1646744979905,11.74,2582.9,2582.8,0.20461965]
[1646744981163,15.24,2582.8,2582.7,0.0047676]
[1646744981559,16.70579345,2582.8,2582.7,0.0047676]
[1646744981762,16.70579345,2582.8,2582.1,2.9092]
[1646744982158,16.70579345,2582.8,2582.6,0.00476772]
[1646744982159,0.98374818,2582.7,2582.6,0.00476772]
[1646744982362,12.72374818,2582.7,2582.6,0.00476772]
[1646744982562,14.02354163,2582.7,2582.6,0.00476772]
[1646744982761,14.01707906,2582.7,2582.1,2.9092]
[1646744983163,12.73979345,2582.2,2582.1,2.9092]
[1646744984210,13.70875345,2582.2,2582.1,2.9092]
[1646744987014,1.96875345,2582.2,2582.1,2.9092]
[1646744988051,0.96896,2582.2,2582.1,2.9092]
[1646744988454,13.70465345,2582.2,2582.1,2.9092]
[1646744988856,13.70465345,2582.2,2582.1,3.7432]
[1646744989661,13.77424157,2582.2,2582.1,3.78526009]
[1646744990059,1.03444812,2582.2,2582.1,3.78526009]
[1646744990261,1.03444812,2582.2,2582.1,3.68526009]
[1646744990661,0.06958812,2582.2,2582.1,3.68526009]
[1646744990862,0.06958812,2582.2,2582.1,7.18526009]
[1646744991062,0.0234562,2582.3,2582.2,0.13917624]
[1646744994307,0.96879,2582.5,2582.2,0.13917624]
[1646744994508,0.02367649,2582.7,2582.5,0.834]
[1646744995153,0.02367649,2582.7,2582.6,3.6432]
[1646744996355,0.3873,2583.4,2582.6,4.029]
[1646744996554,2.13759345,2583.7,2583.4,0.834]
[1646744996555,11.74,2583.5,2583.4,0.834]
[1646744996756,0.99979345,2583.5,2583.4,0.834]
[1646744997260,0.99979345,2583.6,2583.4,0.834]
[1646744997461,1.16985011,2583.8,2583.4,0.834]
[1646744997462,0.96841,2583.5,2583.4,0.834]
[1646744998659,12.70841,2583.5,2583.4,3.6432]
[1646745000311,12.70841,2583.5,2583.4,0.834]
[1646745000514,11.74,2583.3,2583.2,0.3]
[1646745000712,11.74,2583.3,2582.9,2.8092]
[1646745001012,11.74,2583.1,2582.9,2.8092]
[1646745001413,0.99979345,2583.1,2582.9,2.8092]
[1646745001814,0.99979345,2583.4,2582.9,2.8092]
[1646745002013,1.96821345,2583.5,2583.3,2.8092]
[1646745002312,3.39930796,2584.0,2583.4,2.8092]
[1646745002313,0.99979345,2583.7,2583.4,2.8092]
[1646745002665,1.22726741,2583.8,2583.4,2.8092]
[1646745003062,1.22726741,2583.8,2583.7,2.8092]
[1646745003263,1.96813345,2584.0,2583.7,2.8092]
[1646745003264,2.93643785,2584.0,2583.7,2.8092]
[1646745003463,0.96831,2583.8,2583.7,2.8092]
[1646745004268,0.96831,2583.8,2583.6,0.3]
[1646745004468,1.93671,2583.8,2583.5,2.8092]
[1646745004769,12.6584325,2583.7,2583.5,2.8092]
[1646745005369,0.9363289,2583.6,2583.5,2.8092]
[1646745006412,12.6763289,2583.6,2583.5,2.8092]
[1646745006603,11.74,2583.6,2583.5,2.8092]
[1646745008202,12.6683437,2583.6,2583.5,2.8092]
[1646745008804,12.9683437,2583.6,2583.2,0.03638401]
[1646745009007,11.74,2583.4,2583.2,2.84558401]
[1646745009206,11.74,2583.4,2583.2,2.81412339]
[1646745009406,11.74,2583.4,2583.2,2.8092]
[1646745009607,11.74,2583.4,2583.2,2.81412329]
[1646745010361,14.67704625,2583.5,2583.2,2.81412329]
[1646745010554,14.67704625,2583.5,2583.2,2.8092]
[1646745010754,13.67729,2583.4,2583.2,2.81412322]
[1646745011754,13.67729,2583.4,2583.2,2.8092]
[1646745011956,13.67729,2583.4,2583.2,2.81395315]
[1646745012759,11.74,2583.4,2583.2,2.81395315]
[1646745012962,11.74,2583.4,2583.2,2.8092]
[1646745013159,12.70858,2583.4,2583.2,0.00475315]
[1646745014108,12.70858,2583.4,2583.0,2.8092]
[1646745014308,11.74,2583.2,2583.0,2.8092]
[1646745014508,12.7086022,2583.2,2583.0,2.8092]
[1646745014910,16.5086022,2583.2,2582.8,0.3]
[1646745015111,17.50839565,2583.2,2582.6,0.3]
[1646745015311,11.74,2582.8,2582.6,0.3]
[1646745015614,0.96872,2582.8,2582.6,0.3]
[1646745015810,0.96872,2582.8,2582.7,2.8092]
[1646745016012,0.99979345,2583.4,2582.7,3.77776]
[1646745016212,0.99979345,2583.4,2582.7,0.96856]
[1646745016518,0.99979345,2583.7,2583.3,2.8092]
[1646745016710,2.8407,2583.8,2583.3,2.8092]
[1646745016711,11.74,2583.8,2583.3,2.8092]
[1646745016914,12.88099918,2583.8,2583.7,2.8092]
[1646745017312,16.38099918,2583.8,2583.6,0.3]
[1646745017513,1.93703,2583.5,2583.2,3.1092]
[1646745017756,13.67703,2583.5,2583.2,3.1092]
[1646745017958,13.67703,2583.5,2583.2,2.8092]
[1646745018158,13.67703,2583.5,2583.2,2.81397059]
[1646745018556,12.73979345,2583.3,2583.2,2.81397059]
[1646745018959,12.73979345,2583.3,2583.2,2.8092]
[1646745019762,12.73979345,2583.3,2583.1,0.30476841]
[1646745019964,11.74,2583.2,2583.1,0.00476841]
[1646745020164,12.73979345,2583.2,2583.0,2.8092]
[1646745020366,12.73979345,2583.2,2583.1,0.00476841]
[1646745020768,12.73979345,2583.2,2583.0,2.76396841]
[1646745020967,12.73979345,2583.2,2583.0,3.73251841]
[1646745021166,12.73979345,2583.2,2583.0,4.03251841]
[1646745022006,14.67702345,2583.2,2583.0,2.76396841]
[1646745022204,15.94563825,2583.2,2583.0,2.76396841]
[1646745022504,0.96861,2583.1,2583.0,2.76396841]
[1646745022705,0.96861,2583.1,2583.0,2.76874077]
[1646745023505,12.78861,2583.1,2583.0,2.76874077]
[1646745023706,12.78861,2583.1,2583.0,2.76396841]
[1646745024608,12.78861,2583.1,2582.9,0.00477241]
[1646745024811,15.32,2583.0,2582.9,0.00477241]
[1646745025011,15.32,2583.0,2582.4,2.76396841]
[1646745025012,11.82,2582.8,2582.4,2.76396841]
[1646745025259,12.12,2582.7,2582.4,2.76396841]
[1646745025657,11.82,2582.5,2582.4,2.76396841]
[1646745026261,12.12,2582.5,2582.4,2.76396841]
[1646745026459,12.12,2582.5,2582.3,0.00476939]
[1646745027459,0.96899,2582.4,2582.0,14.45262221]
[1646745027660,11.82,2582.3,2582.0,4.45262221]
[1646745027859,12.12,2582.3,2582.0,4.45262221]
[1646745028060,13.11979345,2582.3,2582.0,4.45262221]
[1646745028463,13.11979345,2582.3,2582.1,0.96896]
[1646745028913,13.11979345,2582.3,2582.1,0.97372962]
[1646745029505,13.11419785,2582.3,2582.1,0.97372962]